[Event "NY Presidents Day Schiller-C 2024"]
[Site "New York"]
[Date "2024.02.16"]
[Round "1.8"]
[White "Meduri, Aakaash"]
[Black "Lapshun, Yury"]
[Result "0-1"]
[ECO "A07"]
[WhiteElo "1956"]
[BlackElo "2337"]
[Annotator "TA"]
[PlyCount "120"]
[EventDate "2024.02.14"]
[EventType "schev"]
[EventCountry "USA"]
[SourceTitle "playchess.com"]
[Source "ChessBase"]
[SourceQuality "1"]
[TimeControl "5400+30"]

{[%evp 11,120,19,8,0,30,14,21,-1,9,18,18,24,37,0,26,0,0,-58,-51,-56,-22,-24,-43,-34,-18,-11,29,0,58,12,65,59,59,42,81,83,93,91,91,88,79,78,85,82,76,86,87,85,115,32,75,79,86,0,0,0,168,158,162,155,161,153,129,121,107,79,187,178,230,108,150,162,148,67,270,274,462,447,437,419,415,368,550,556,575,41,576,572,437,422,413,8,8,0,0,-1497,-1290,-2058,-4618,-4618,-4618,-1095,-48,-29983,-29984,-29984,-29985,-29996,-29997,-29997,-29998]} 1. Nf3 {[%emt 0:00:04]} d5 {[%emt 0:04:58]} 2. g3 {[%emt 0:01:02]} c6 {[%emt 0:01:13]} 3. Bg2 {[%emt 0:00:55]} Nf6 {[%emt 0:00:08]} 4. O-O {[%emt 0:01:03]} Bf5 {[%emt 0:00:24]} 5. b3 {[%emt 0:00:49]} e6 {[%emt 0:00:29]} 6. Bb2 {[%emt 0:00:21]} Nbd7 {[%emt 0:00:09]} 7. d3 {[%emt 0:00:33]} Be7 {[%emt 0:00:13]} 8. Nbd2 {[%emt 0:00:45]} O-O {[%emt 0:00:06]} 9. Qe1 {[%emt 0:02:03] Die Stellung ist ausgeglichen.} h6 {[%emt 0:02:20]} 10. e4 {[%emt 0:00:54]} dxe4 {[%emt 0:00:09]} 11. dxe4 {[%emt 0:00:33]} Bh7 {[%emt 0:00:02]} 12. Rd1 {[%emt 0:01:03]} Qc7 {[%emt 0:00:50]} 13. e5 {[%emt 0:09:52]} Nd5 {[%emt 0:04:17]} 14. c4 {[%emt 0:02:32]} (14. Ne4 $11) 14... Nb4 $15 {[%emt 0:00:49][%cal Ob4d3] Droht ...Nd3! und aus.} 15. Ne4 {[%emt 0:00:22]} Bxe4 {[%emt 0:01:23]} 16. Qxe4 {[%emt 0:00:20]} Nxa2 {[%emt 0:00:43]} 17. Nd4 {[%emt 0:04:07]} Rfd8 {[%emt 0:06:14][%cal Oc7b6]} 18. f4 {[%emt 0:02:20]} Nc5 {[%emt 0:01:36]} (18... Bc5 {vereinfacht} 19. Kh1 Nf8 20. f5 Bxd4 21. Rxd4 Rxd4 22. Bxd4 exf5 23. Qxf5 b6) 19. Qb1 {[%emt 0:01:07]} Nb4 {[%emt 0:02:10]} (19... Qa5 $1 $11) 20. f5 $1 $14 {[%emt 0:03:17]} Bg5 {[%emt 0:12:49]} (20... Qxe5 $2 21. Rde1 Qd6 22. fxe6 fxe6 (22... Nxe6 $2 23. Nxe6 Nd3 24. Nxd8 $18) 23. Qg6 $18) (20... exf5 $11 21. Qxf5 Rf8) 21. fxe6 {[%emt 0:03:23]} fxe6 {[%emt 0:03:30]} 22. Qg6 {[%emt 0:08:38]} Qe7 {[%emt 0:02:17]} 23. Bh3 {[%emt 0:05:02][%cal Rd4e6] Ein starkes Läuferpaar.} Be3+ {[%emt 0:01:45]} 24. Kg2 $1 {[%emt 0:01:05][%cal Rd4e6]} Qe8 {[%emt 0:25:02]} 25. Bxe6+ {[%emt 0:17:20]} Nxe6 {[%emt 0:00:09]} 26. Qxe6+ {[%emt 0:00:23]} Qxe6 {[%emt 0:00:21]} 27. Nxe6 {[%emt 0:00:19]} Rd3 {[%emt 0:02:50]} 28. Ba3 {[%emt 0:04:54]} Rxd1 {[%emt 0:07:36]} 29. Rxd1 {[%emt 0:00:24]} Nc2 {[%emt 0:04:10]} 30. Bd6 {[%emt 0:02:17]} (30. Bb2 $1 $16 {Und jetzt Rd7 wäre schön.} Re8 31. Rd6) 30... Bb6 {[%emt 0:00:54] ...Ne3+ wäre nun fies.} 31. Kf3 {[%emt 0:28:13]} Re8 {[%emt 0:00:35]} 32. Nc7 {[%emt 0:00:00]} ({Vorzuziehen ist} 32. Rc1 $16) 32... Rc8 $11 {[%emt 0:00:14]} 33. Ne6 {[%emt 0:00:00]} Kf7 $2 {[%emt 0:00:28]} (33... Re8 $11 34. Rc1 Nb4 (34... Kf7 35. Ng5+ hxg5 36. Rxc2 $16)) 34. Nc5 $18 {[%emt 0:00:00]} Bxc5 {[%emt 0:02:01]} 35. Bxc5 $16 {[%emt 0:00:00][%mdl 4096] Endspiel. Zielt auf Rd7+ ab. KRB-KRN} b6 {[%emt 0:01:01]} 36. Rd7+ {[%emt 0:00:00]} Kg6 {[%emt 0:00:31]} 37. Bf2 {[%emt 0:00:00]} Rf8+ {[%emt 0:01:42]} 38. Ke2 {[%emt 0:00:00]} Re8 {[%emt 0:02:21]} (38... Rf7 $16 {war nötig.} 39. Rd6+ Kf5) 39. Kd2 $18 {[%emt 0:00:00]} (39. Rxa7 Rxe5+ 40. Kd2 b5 (40... c5 $2 41. Ra6 $18)) 39... Rf8 {[%emt 0:01:00]} (39... Na1 {ist eine bessere Verteidigung.}) 40. Bxb6 {[%emt 0:00:00]} (40. Rd6+ $1 $18 Kg5 41. Bxb6 axb6 42. Kxc2 Rf2+ 43. Kd3 Rxh2 44. Rxc6) 40... axb6 $16 {[%emt 0:00:32]} 41. Kxc2 $18 {[%emt 0:00:00] Schwarz muss nun Rd6+ beachten. KR-KR} Rf2+ {[%emt 0:00:22]} 42. Kc3 {[%emt 0:00:00]} (42. Kd3 $1 $16) 42... Rxh2 $2 {[%emt 0:01:01]} (42... c5 $1 $14) 43. Rd6+ {[%emt 0:00:00]} Kf5 $2 {[%emt 0:00:20]} (43... Kf7 44. Rxc6 Rh3) 44. Rxc6 {[%emt 0:00:00]} Rh3 {[%emt 0:00:11]} 45. Rxb6 {[%emt 0:00:00]} Rxg3+ {[%emt 0:00:08]} 46. Kd4 {[%emt 0:00:00]} h5 {[%emt 0:01:38]} (46... Rg1 $142 47. b4 Rd1+ 48. Kc5 Re1) 47. c5 {[%emt 0:00:00] Droht stark c6.} (47. e6 Kf6 $11) 47... Rg1 {[%emt 0:02:36]} 48. e6 $2 {[%emt 0:00:40]} ({Weiss braucht} 48. c6 $18) 48... h4 $2 {[%emt 0:00:45][%mdl 8192] [#]} (48... Kf6 $1 $14) 49. e7 $1 {[%emt 0:00:55]} Rd1+ {[%emt 0:01:52]} 50. Kc4 {[%emt 0:02:38]} Re1 {[%emt 0:00:04]} 51. Rb7 {[%emt 0:01:01]} ({Günstiger ist} 51. c6 $18 {Und c7 würde nun gewinnen.} Rxe7 52. Rb7) 51... Kf6 $1 $11 {[%emt 0:01:19]} 52. c6 {[%emt 0:01:32]} h3 $1 {[%emt 0:02:14][%cal Oh3h2] ( -> ...h2!)} 53. c7 $2 {[%emt 0:01:03][%mdl 8192]} (53. Rb8 $11 Kxe7 54. Rh8) 53... h2 $1 $19 {[%emt 0:00:44]} 54. Kb5 {[%emt 0:02:59]} h1=Q {[%emt 0:02:46]} (54... h1=R $2 55. c8=Q (55. c8=R Rxe7 56. Rb6+ Kf7 $11) 55... Rh5+ 56. Kb6 $18) 55. c8=Q {[%emt 0:00:21] Pariert Qxb7+.} Qd5+ {[%emt 0:00:08]} (55... Rxe7 56. Qf8+ Kg6 57. Rb6+ (57. Rxe7 Qd5+ 58. Ka4 Qc6+ 59. Kb4 Qb6+ 60. Kc4 Qa6+ 61. Kb4 Qb6+ 62. Kc3 Qc5+ 63. Kd2 Qd4+ 64. Ke1 Qb4+ 65. Kf1 Qd4 $18) 57... Kg5 58. Qxe7+ Kh5 59. Qe8+ (59. Qxg7 Qf1+ 60. Ka5 Qe1+ 61. Ka4 Qd2 62. Qg6+ Kh4 63. Rb4+ Kh3 64. Qh5+ Kg2) 59... Kg4 60. Rg6+ Kf4 61. Qf7+ (61. Rxg7 Qd5+ 62. Ka6 Qd3+ 63. Qb5 Qd6+ 64. Kb7 Qf6 65. Qc4+ Ke5) 61... Ke3 62. Re6+ (62. Qxg7 Qh5+ 63. Kb6 Qd5 $18) (62. Qxg7 Qd5+ 63. Ka6 Qd3+ 64. Ka7 Qf5 $18)) 56. Kb6 {[%emt 0:00:31]} Qd4+ $2 {[%emt 0:00:49]} ({Schlechter ist} 56... Rxe7 57. Qc3+ (57. Qf8+ Qf7 $11) 57... Qe5 58. Qf3+ Ke6 59. Qg4+ Kf6 60. Qf3+ Ke6 61. Qc6+ Kf7 62. Qc4+ Kf8 63. Rxe7 Qd6+ 64. Ka5 Kxe7 65. Qe2+ Kd8 66. Qc4 $11) (56... Qxb3+ $19 57. Ka7 Qa3+ (57... Rxe7 58. Qf8+ Qf7 59. Qd8 $17) 58. Kb8 Qd6+ (58... Rxe7 59. Qf8+ Ke6 60. Rb6+ Ke5 61. Rb5+ Kd6 62. Qf4+ Kd7 63. Qc7+ Ke8 64. Qc6+ Rd7 65. Re5+ $18) 59. Qc7 Qxc7+ (59... Qxe7 60. Qf4+ Kg6 61. Rxe7 $18) 60. Rxc7 Rxe7 61. Rc6+ Re6) 57. Ka6 $2 {[%emt 0:00:43][%mdl 8192] [#]} (57. Qc5 $15 Re6+ 58. Kb5) 57... Ra1+ $1 {[%emt 0:00:39] Schwarz setzt Matt.} 58. Kb5 {[%emt 0:00:02]} Qd5+ {[%emt 0:00:13]} 59. Kb6 {[%emt 0:00:56]} Qa5+ {[%emt 0:00:12]} 60. Kc6 {[%emt 0:00:26]} Rc1+ {[%emt 0:00:06] Gewichteter Fehlerwert: Weiß=0.76/Schwarz=0.41.  Verlustzug:     	Weiß=1     	Schwarz=3     Gewinn verpasst:   	Weiß=2     	---        Fehler:       	Weiß=5     	Schwarz=6     Ungenau:       	Weiß=3     	Schwarz=5     OK:         	Weiß=11    	Schwarz=18    Bester:       	Weiß=10    	Schwarz=5     Stark:        	Weiß=3     	Schwarz=3} 0-1

[Event "NY Presidents Day Schiller-C 2024"]
[Site "New York"]
[Date "2024.02.16"]
[Round "1.9"]
[White "Yoo, Eugene"]
[Black "Campos Jimenez, Augusto Cesar"]
[Result "1/2-1/2"]
[ECO "D11"]
[WhiteElo "2168"]
[BlackElo "2288"]
[Annotator "TA"]
[PlyCount "94"]
[EventDate "2024.02.14"]
[EventType "schev"]
[EventCountry "USA"]
[SourceTitle "playchess.com"]
[Source "ChessBase"]
[SourceQuality "1"]
[TimeControl "5400+30"]

{[%evp 9,94,5,4,9,42,51,41,31,38,36,34,37,49,27,23,-49,-29,-40,-27,-28,33,23,38,18,54,49,70,73,54,71,66,50,68,53,104,99,88,100,96,83,87,46,77,0,96,41,63,0,0,0,0,0,0,0,0,0,0,0,0,-10,0,0,0,0,-45,-64,-56,-70,21,18,40,35,27,0,0,0,28,0,0,0,25,0,0,0,6,0,6]} 1. d4 {[%emt 0:00:02]} d5 {[%emt 0:34:21]} 2. Nf3 {[%emt 0:00:05]} Nf6 {[%emt 0:00:09]} 3. g3 {[%emt 0:00:08]} Bf5 {[%emt 0:00:09]} 4. c4 {[%emt 0:01:43]} c6 {[%emt 0:00:01]} 5. Nc3 {[%emt 0:00:17]} e6 {[%emt 0:00:21]} 6. Nh4 {[%emt 0:00:46]} Be4 {[%emt 0:00:18]} 7. f3 {[%emt 0:04:14]} Bg6 {[%emt 0:00:02]} 8. Qb3 {[%emt 0:08:19] White is slightly better.} Qb6 {[%emt 0:00:24]} 9. Nxg6 {[%emt 0:01:14]} hxg6 {[%emt 0:00:04]} 10. c5 {[%emt 0:00:21]} Qc7 {[%emt 0:01:34]} 11. Bf4 {[%emt 0:02:37]} Qc8 {[%emt 0:00:16]} 12. Bd6 {[%emt 0:15:29]} (12. g4 $11) 12... Bxd6 $15 {[%emt 0:08:06]} 13. cxd6 {[%emt 0:01:09]} O-O {[%emt 0:02:45]} 14. e4 {[%emt 0:03:34][%cal Be2e4,Be4e5][%mdl 32]} c5 {[%emt 0:02:12]} (14... dxe4 $11 15. fxe4 c5) 15. e5 $1 $14 {[%emt 0:06:18]} (15. exd5 exd5 (15... cxd4 16. dxe6 dxc3 17. e7 $16) 16. Nxd5 Qe6+ 17. Ne3 Qxb3 18. axb3 cxd4 $11) 15... Nfd7 {[%emt 0:02:27] [#] Threatens to win with ...Nc6.} 16. f4 $1 {[%emt 0:10:25]} Nc6 {[%emt 0:00:59]} 17. dxc5 {[%emt 0:02:33]} Nd4 {[%emt 0:04:52]} 18. Qa4 {[%emt 0:00:37]} Qxc5 {[%emt 0:01:33]} 19. O-O-O $1 {[%emt 0:05:32]} (19. Qxd7 Nc2+ 20. Kd2 Nxa1 $11) 19... Nc6 {[%emt 0:00:07] [#] ...d4 is the strong threat.} 20. Qb5 {[%emt 0:02:27]} Qe3+ {[%emt 0:03:35]} 21. Kb1 {[%emt 0:00:05][%cal Of1h3]} Nc5 {[%emt 0:01:46]} (21... g5 $14 22. Qxb7 gxf4 23. Qxc6 (23. Qxd7 Nxe5 24. Qa4 Rab8 $18) 23... Nxe5) 22. Bh3 $16 {[%emt 0:08:03] And now Rhe1 would win.} Ne4 {[%emt 0:02:07]} 23. Nxe4 {[%emt 0:02:03]} (23. Qxb7 $2 {loses.} Nxc3+ 24. Ka1 Nxd1 25. Rxd1 Qe2 $19) 23... Qxe4+ {[%emt 0:00:15]} 24. Qd3 {[%emt 0:07:51]} Qa4 {[%emt 0:00:18]} 25. Qb3 {[%emt 0:01:27] Wards off Nb4} Qe4+ {[%emt 0:00:27]} 26. Qd3 {[%emt 0:04:25] Black must now prevent Qxe4.} Qa4 {[%emt 0:00:11]} 27. Rhe1 {[%emt 0:12:16]} (27. Qe2 $16) 27... Rfc8 {[%emt 0:02:29]} 28. Bf1 {[%emt 0:00:00] White is more active.} (28. Re3 $14) 28... Nb4 $11 {[%emt 0:04:07][%csl LRa2,LRd3]} 29. Qb3 {[%emt 0:00:00]} Qxb3 {[%emt 0:00:07]} 30. axb3 {[%emt 0:00:00]} Kf8 {[%emt 0:00:10]} 31. Rc1 {[%emt 0:00:00]} a6 {[%emt 0:01:26] Wards off Bb5} 32. Rc3 {[%emt 0:00:00]} Ke8 {[%emt 0:00:41]} 33. Rec1 {[%emt 0:00:00]} Rc6 {[%emt 0:01:28]} 34. Rxc6 {[%emt 0:00:00]} bxc6 {[%emt 0:01:45][%mdl 4096] Endgame. KRB-KRN} 35. Rc5 $1 {[%emt 0:00:00]} Kd7 {[%emt 0:01:14]} 36. Kc1 {[%emt 0:00:09]} f6 {[%emt 0:03:02]} 37. Kd2 {[%emt 0:00:02]} g5 {[%emt 0:08:43]} 38. Kc3 {[%emt 0:02:58]} a5 {[%emt 0:02:19]} (38... Na2+ $15 39. Kd4 gxf4 40. gxf4 fxe5+ 41. fxe5 (41. Kxe5 $2 {perishes.} Rh8 $19) 41... Rf8) 39. h4 {[%emt 0:00:53]} gxf4 {[%emt 0:01:32]} 40. gxf4 {[%emt 0:00:01]} Na2+ {[%emt 0:01:52]} 41. Kc2 {[%emt 0:01:47]} Nb4+ {[%emt 0:02:06]} 42. Kc3 {[%emt 0:00:01]} Na2+ {[%emt 0:02:23]} 43. Kc2 {[%emt 0:00:00]} a4 {[%emt 0:00:49]} 44. Be2 {[%emt 0:00:22]} Nb4+ {[%emt 0:00:40]} 45. Kc3 {[%emt 0:00:13]} Na2+ {[%emt 0:00:07] The position is equal.} 46. Kc2 {[%emt 0:00:06]} Nb4+ {[%emt 0:00:24]} 47. Kc3 {[%emt 0:00:02]} Na2+ {[%emt 0:00:14] Weighted Error Value: White=0.13 (very precise) /Black=0.13 (very precise) .  Mistake:       	White=3     	Black=3      Inaccurate:     	White=2     	Black=3      OK:         	White=15    	Black=20     Best:        	White=4     	Black=2      Strong:       	White=4     	---} 1/2-1/2

[Event "NY Presidents Day Schiller-C 2024"]
[Site "New York"]
[Date "2024.02.16"]
[Round "2.1"]
[White "Gaw, Chloe"]
[Black "Czebe, Attila"]
[Result "0-1"]
[ECO "E32"]
[WhiteElo "1928"]
[BlackElo "2346"]
[Annotator "TA"]
[PlyCount "100"]
[EventDate "2024.02.14"]
[EventType "schev"]
[EventCountry "USA"]
[SourceTitle "playchess.com"]
[Source "ChessBase"]
[SourceQuality "1"]
[TimeControl "5400+30"]

{[%evp 13,100,10,14,16,14,10,14,6,11,-14,0,-104,-75,-78,-90,-92,-27,-25,-6,-22,0,-7,0,0,0,0,33,-99,-106,-159,-174,-158,-161,-212,-210,-194,-214,-215,-80,-88,-88,-75,-80,-141,-137,-130,-125,-125,-143,-152,-143,-636,-632,-1192,-1200,-1203,-964,-1197,-1259,-1114,-993,-714,-403,-533,-1483,-1385,-592,-6488,-2214,-5398,-1939,-29962,-29964,-29972,-29974,-29974,-29975,-29975,-29976,-29981,-29977,-29977,-29978,-29985,-29985,-29986,-29982,-29988,-29982]} 1. d4 {[%emt 0:00:03]} e6 {[%emt 0:00:11]} 2. c4 {[%emt 0:00:08]} Bb4+ {[%emt 0:00:03]} 3. Nc3 {[%emt 0:00:17]} b6 {[%emt 0:00:30]} 4. Nf3 {[%emt 0:01:58]} Bb7 {[%emt 0:00:06]} 5. Qc2 {[%emt 0:00:42]} f5 {[%emt 0:00:27]} 6. a3 {[%emt 0:01:30]} Bxc3+ {[%emt 0:00:07]} 7. Qxc3 {[%emt 0:00:08]} Nf6 {[%emt 0:00:06]} 8. e3 {[%emt 0:09:03]} O-O {[%emt 0:00:31]} 9. b3 {[%emt 0:02:41]} d6 {[%emt 0:00:25]} 10. Bb2 {[%emt 0:00:46] The position is equal.} Nbd7 {[%emt 0:00:44]} 11. Bd3 {[%emt 0:02:05]} Qe7 {[%emt 0:00:44]} 12. O-O-O {[%emt 0:09:49]} (12. O-O $11 {remains equal.}) 12... Ne4 {[%emt 0:01:35]} 13. Qe1 {[%emt 0:02:02] [#]} b5 $1 {[%emt 0:00:38] Black is more active.} 14. cxb5 {[%emt 0:06:25]} a6 {[%emt 0:00:53]} (14... Bd5 $17 15. Nd2 Nxd2 16. Kxd2 Bxg2 (16... Bxb3 17. Rc1 $11)) 15. Nd2 $11 {[%emt 0:07:53]} axb5 {[%emt 0:00:46] Threatening ...c5.} 16. f3 $1 {[%emt 0:01:41]} Nxd2 {[%emt 0:00:11]} 17. Qxd2 {[%emt 0:00:19]} c5 {[%emt 0:00:47][%cal Oc5c4] ...c4! would now be deadly.} 18. Bxb5 {[%emt 0:02:02]} Bd5 {[%emt 0:01:56]} 19. Qd3 {[%emt 0:08:25]} cxd4 {[%emt 0:00:41]} 20. Bxd7 {[%emt 0:11:36]} (20. exd4 $14 {keeps the upper hand.} Rfb8 21. Kb1) 20... Qxd7 $17 {[%emt 0:00:09]} 21. Qxd4 {[%emt 0:04:35]} (21. exd4 $142 Rab8 22. b4) 21... Bxb3 {[%emt 0:00:54]} 22. Rd2 {[%emt 0:00:27]} Bd5 {[%emt 0:04:50]} 23. Re1 {[%emt 0:04:58]} (23. Rc2 {keeps fighting.}) 23... Rfb8 $19 {[%emt 0:05:34] Threatens to win with ...Ra4.} 24. e4 {[%emt 0:04:21] [#]} fxe4 {[%emt 0:00:14]} 25. fxe4 {[%emt 0:01:12] [#]} Ra4 {[%emt 0:00:14]} (25... Ba2 $1 $19 {and Black stays clearly on top. White must now prevent ...Ra4.} 26. Re3 Ra6 (26... e5 27. Qxe5 Qc8+ 28. Qc3 $11)) 26. Qxg7+ $17 {[%emt 0:03:26]} Qxg7 {[%emt 0:00:05]} 27. Bxg7 {[%emt 0:00:09]} Bxe4 {[%emt 0:14:26][%csl Ge4][%cal Rb8b1]} (27... Rxe4 28. Rxe4 Bxe4 29. Re2 $11) 28. Rd4 {[%emt 0:03:12]} ({White should play} 28. Bb2) 28... Rxd4 {[%emt 0:02:29]} (28... Bxg2 $2 {perishes.} 29. Rxa4 Kxg7 30. Rg1 $18 (30. Rxe6 d5 $18) (30. Rg4+ Kf6 $18)) (28... Rxa3 29. Rexe4 Ra1+ (29... Kxg7 30. Rxe6 Ra1+ 31. Kc2 $11) 30. Kd2 Kxg7 31. Rxd6 $16) 29. Bxd4 {[%emt 0:00:03][%mdl 4096] Endgame. KRB-KRB} Rb1+ {[%emt 0:00:07]} 30. Kd2 {[%emt 0:00:07]} Rxe1 {[%emt 0:00:02]} 31. Kxe1 {[%emt 0:00:05]} Bxg2 {[%emt 0:00:04] ...Kf7 is the strong threat. KB-KB} 32. Kf2 $2 {[%emt 0:01:25][%mdl 8192] Loses the game.} (32. Bb2 $17) 32... Bc6 $19 {[%emt 0:00:09]} 33. Ba7 {[%emt 0:06:02]} Kf7 {[%emt 0:00:08]} 34. Bb8 {[%emt 0:00:25]} Ke7 {[%emt 0:00:04]} 35. Ke3 {[%emt 0:00:14]} e5 {[%emt 0:00:05]} 36. Kd3 {[%emt 0:01:08]} Ke6 {[%emt 0:00:06]} 37. Kc4 {[%emt 0:01:12]} Bb7 {[%emt 0:02:18]} 38. Kb5 {[%emt 0:01:04]} d5 {[%emt 0:10:45] Hoping for ...d4.} 39. Bc7 {[%emt 0:04:33]} d4 {[%emt 0:00:14]} 40. Kc5 {[%emt 0:01:25]} Kf5 {[%emt 0:00:11]} (40... d3 $142 41. Ba5 Kf5) 41. a4 {[%emt 0:00:39]} Ke4 {[%emt 0:00:34]} 42. Kc4 {[%emt 0:00:32]} Ba6+ {[%emt 0:00:09] Black mates.} 43. Kb3 {[%emt 0:00:23]} Kd5 {[%emt 0:00:08]} 44. Ba5 {[%emt 0:00:34]} e4 {[%emt 0:00:05]} 45. Kc2 {[%emt 0:00:11]} e3 {[%emt 0:00:03]} 46. Be1 {[%emt 0:00:40]} d3+ {[%emt 0:00:17]} 47. Kd1 {[%emt 0:00:42]} Ke4 {[%emt 0:00:40]} 48. a5 {[%emt 0:00:24]} Kf3 {[%emt 0:00:10]} 49. Bb4 {[%emt 0:00:26]} h5 {[%emt 0:00:14]} 50. h4 {[%emt 0:00:12]} d2 {[%emt 0:00:09] Weighted Error Value: White=0.78/Black=0.27 (precise) .  Loses game:     	White=1     	---        Mistake:       	White=5     	Black=2      Inaccurate:     	White=2     	Black=1      OK:         	White=7     	Black=9      Best:        	White=2     	Black=3      Strong:       	White=1     	---} 0-1

[Event "NY Presidents Day Schiller-C 2024"]
[Site "New York"]
[Date "2024.02.16"]
[Round "2.2"]
[White "Mou, Iris"]
[Black "Quesada Vera, Liordis"]
[Result "0-1"]
[ECO "B12"]
[WhiteElo "2128"]
[BlackElo "2337"]
[Annotator "RC"]
[PlyCount "78"]
[EventDate "2024.02.14"]
[EventType "schev"]
[EventCountry "USA"]
[SourceTitle "playchess.com"]
[Source "ChessBase"]
[SourceQuality "1"]
[TimeControl "5400+30"]

1. e4 {[%emt 0:00:01]} d6 {[%emt 0:20:37]} 2. d4 {[%emt 0:00:15]} c6 {[%emt 0:00:27]} 3. Nc3 {[%emt 0:01:42]} Qa5 {[%emt 0:01:17]} 4. Nf3 {[%emt 0:10:51]} e5 {[%emt 0:10:10]} 5. Bc4 {[%emt 0:09:16]} h6 {[%emt 0:00:05]} 6. Bd2 {[%emt 0:02:41]} Qc7 {[%emt 0:00:10]} 7. a4 {[%emt 0:02:05]} Nf6 {[%emt 0:00:44]} 8. h3 {[%emt 0:02:29]} Be7 {[%emt 0:01:50]} 9. a5 {[%emt 0:07:49]} Nbd7 {[%emt 0:01:43]} 10. Be3 {[%emt 0:04:57]} Nf8 {[%emt 0:10:16]} 11. O-O {[%emt 0:05:48]} g5 {[%emt 0:00:49]} 12. dxe5 {[%emt 0:10:29]} dxe5 {[%emt 0:01:12]} 13. Nxe5 {[%emt 0:01:29]} Qxe5 {[%emt 0:00:06]} 14. Bd4 {[%emt 0:00:21]} Qf4 {[%emt 0:13:38]} 15. g3 {[%emt 0:07:15]} Qb8 {[%emt 0:14:51]} 16. e5 {[%emt 0:08:44]} Nd5 {[%emt 0:00:20]} 17. e6 {[%emt 0:03:20]} Rh7 {[%emt 0:01:40]} 18. Nxd5 {[%emt 0:04:14]} cxd5 {[%emt 0:00:37]} 19. Bb5+ {[%emt 0:01:01]} Kd8 {[%emt 0:00:17]} 20. Bd3 {[%emt 0:02:07]} Bxe6 {[%emt 0:00:38]} 21. Bxh7 {[%emt 0:00:08]} Nxh7 {[%emt 0:00:05]} 22. Qh5 {[%emt 0:03:15]} Qc8 {[%emt 0:07:40]} 23. Rac1 {[%emt 0:04:22]} Qc4 {[%emt 0:06:20]} 24. Rfd1 {[%emt 0:00:53]} Ke8 {[%emt 0:00:56]} 25. Qxh6 {[%emt 0:02:44]} Nf8 {[%emt 0:00:02]} 26. Qh5 {[%emt 0:01:02]} Bf5 {[%emt 0:00:17]} 27. b3 {[%emt 0:00:46]} Qb5 {[%emt 0:02:16]} 28. c4 {[%emt 0:01:21]} dxc4 {[%emt 0:01:19]} 29. bxc4 {[%emt 0:00:06]} Qc6 {[%emt 0:00:20]} 30. Re1 {[%emt 0:01:03]} Ne6 {[%emt 0:00:19]} 31. Qh8+ {[%emt 0:00:50]} Kd7 {[%emt 0:00:45]} 32. Qxa8 {[%emt 0:02:25]} Bxh3 {[%emt 0:00:04]} 33. f3 {[%emt 0:00:28]} Qxf3 {[%emt 0:00:04]} 34. Re2 {[%emt 0:00:15]} Qxg3+ {[%emt 0:00:32]} 35. Kh1 {[%emt 0:00:05]} Qf3+ {[%emt 0:00:48]} 36. Kg1 {[%emt 0:00:04]} Nxd4 {[%emt 0:03:54]} 37. Rd1 {[%emt 0:01:18]} Qg4+ {[%emt 0:00:30]} 38. Kh1 {[%emt 0:00:08]} Bg2+ {[%emt 0:00:15]} 39. Kg1 {[%emt 0:01:04]} Bd5+ {[%emt 0:00:21]} 0-1

[Event "NY Presidents Day Schiller-C 2024"]
[Site "New York"]
[Date "2024.02.16"]
[Round "2.3"]
[White "Shangin, Lev"]
[Black "Perez Avendano, Paul Omar"]
[Result "1-0"]
[ECO "A52"]
[WhiteElo "1866"]
[BlackElo "2213"]
[Annotator "RC"]
[PlyCount "83"]
[EventDate "2024.02.14"]
[EventType "schev"]
[EventCountry "USA"]
[SourceTitle "playchess.com"]
[Source "ChessBase"]
[SourceQuality "1"]
[TimeControl "5400+30"]

1. d4 {[%emt 0:00:11]} Nf6 {[%emt 0:00:21]} 2. c4 {[%emt 0:00:18]} e5 {[%emt 0:00:13]} 3. dxe5 {[%emt 0:00:46]} Ng4 {[%emt 0:00:12]} 4. b3 {[%emt 0:01:20]} Nc6 {[%emt 0:02:11]} 5. Bb2 {[%emt 0:00:52]} Bb4+ {[%emt 0:01:50]} 6. Nc3 {[%emt 0:00:57]} d6 {[%emt 0:02:43]} 7. a3 {[%emt 0:02:25]} Ba5 {[%emt 0:01:09]} 8. Nf3 {[%emt 0:04:12]} Bb6 {[%emt 0:01:32]} 9. e3 {[%emt 0:00:17]} Ncxe5 {[%emt 0:04:37]} 10. Be2 {[%emt 1:24:12]} Nxf2 {[%emt 0:02:09]} 11. Kxf2 {[%emt 0:00:00]} Ng4+ {[%emt 0:00:13]} 12. Ke1 {[%emt 0:00:00]} Nxe3 {[%emt 0:00:24]} 13. Qd2 {[%emt 0:00:00]} Nxg2+ {[%emt 0:01:36]} 14. Kd1 {[%emt 0:00:00]} Be3 {[%emt 0:07:29]} 15. Qd3 {[%emt 0:00:00]} Bh6 {[%emt 0:12:14]} 16. Nd5 {[%emt 0:00:00]} c6 {[%emt 0:10:27]} 17. Rg1 {[%emt 0:00:00]} cxd5 {[%emt 0:13:30]} 18. Rxg2 {[%emt 0:00:00]} dxc4 {[%emt 0:01:53]} 19. Qxc4 {[%emt 0:00:00]} d5 {[%emt 0:09:55]} 20. Qd4 {[%emt 0:00:00]} f6 {[%emt 0:05:53]} 21. Bb5+ {[%emt 0:00:00]} Kf7 {[%emt 0:00:13]} 22. Rf2 {[%emt 0:00:00]} Rf8 {[%emt 0:01:46]} 23. Bd3 {[%emt 0:00:00]} Kg8 {[%emt 0:00:49]} 24. Qh4 {[%emt 0:00:00]} Kh8 {[%emt 0:04:29]} 25. Bc1 {[%emt 0:00:00]} Rf7 {[%emt 0:03:31]} 26. Bxh6 {[%emt 0:00:00]} gxh6 {[%emt 0:00:06]} 27. Ne5 {[%emt 0:00:00]} Rg7 {[%emt 0:00:22]} 28. Kd2 {[%emt 0:00:00]} d4 {[%emt 0:08:23]} 29. Qxf6 {[%emt 0:00:00]} Qxf6 {[%emt 0:00:14]} 30. Rxf6 {[%emt 0:00:00]} Rg2+ {[%emt 0:00:19]} 31. Be2 {[%emt 0:00:00]} d3 {[%emt 0:00:37]} 32. Kxd3 {[%emt 0:00:00]} Bh3 {[%emt 0:01:15]} 33. Bf3 {[%emt 0:00:00]} Rg7 {[%emt 0:01:59]} 34. Nf7+ {[%emt 0:00:00]} Kg8 {[%emt 0:00:01]} 35. Nxh6+ {[%emt 0:00:00]} Kh8 {[%emt 0:00:13]} 36. Nf7+ {[%emt 0:00:00]} Kg8 {[%emt 0:00:05]} 37. Bd5 {[%emt 0:00:00]} Bg2 {[%emt 0:02:53]} 38. Be6 {[%emt 0:00:00]} Kf8 {[%emt 0:00:41]} 39. Re1 {[%emt 0:00:00]} Ke7 {[%emt 0:00:32]} 40. Rf2 {[%emt 0:00:00]} Bc6 {[%emt 0:00:48]} 41. Bh3+ {[%emt 0:00:00]} Kf8 {[%emt 0:00:24]} 42. Nh6+ {[%emt 0:00:00]} 1-0